fUSD/lending_fUSD_20240619
["ID","MTS","AMOUNT","RATE_DAILY","PERIOD"]
[329894289,1718801538699,-567.71,0.00013972,2]
[329894290,1718801538722,-500.0,0.00013972,2]
[329894291,1718801538744,-500.0,0.00013972,2]
[329894292,1718801538766,-843.18,0.00013972,2]
[329894293,1718801538789,-613.7,0.00013972,2]
[329894294,1718801538812,-788.62,0.00013972,2]
[329894295,1718801538836,-500.0,0.00013972,2]
[329894296,1718801538859,-500.0,0.00013972,2]
[329894297,1718801538881,-500.0,0.00013972,2]
[329894298,1718801538903,-500.0,0.00013972,2]
[329894299,1718801538924,-1018.62,0.00013972,2]
[329894300,1718801538946,-500.0,0.00013972,2]
[329894301,1718801538968,-500.0,0.00013972,2]
[329894302,1718801538990,-500.0,0.00013972,2]
[329894303,1718801539022,-500.0,0.00013972,2]
[329894304,1718801539049,-699.22,0.00013972,2]
[329894305,1718801539072,-500.0,0.00013972,2]
[329894306,1718801539095,-500.0,0.00013972,2]
[329894307,1718801539118,-500.0,0.00013972,2]
[329894308,1718801539142,-500.0,0.00013972,2]
[329894309,1718801539166,-500.0,0.00013972,2]
[329894310,1718801539190,-887.14,0.00013972,2]
[329894311,1718801539214,-500.0,0.00013972,2]
[329894312,1718801539238,-500.0,0.00013972,2]
[329894313,1718801539265,-500.0,0.00013972,2]
[329894314,1718801539291,-500.0,0.00013972,2]
[329894315,1718801539317,-806.94,0.00013972,2]
[329894316,1718801539340,-721.0,0.00013972,2]
[329894317,1718801539363,-500.0,0.00013972,2]
[329894318,1718801539389,-500.0,0.00013972,2]
[329894319,1718801539411,-500.0,0.00013972,2]
[329894320,1718801539437,-500.0,0.00013972,2]
[329894321,1718801539459,-500.0,0.00013972,2]
[329894322,1718801539483,-500.0,0.00013972,2]
[329894323,1718801539506,-500.0,0.00013972,2]
[329894324,1718801539529,-605.45,0.00013972,2]
[329894325,1718801539552,-1101.03,0.00013972,2]
[329894326,1718801539576,-500.0,0.00013972,2]
[329894327,1718801539600,-648.85,0.00013972,2]
[329894328,1718801539624,-500.0,0.00013972,2]
[329894329,1718801539648,-500.0,0.00013972,2]
[329894330,1718801539671,-523.55649558,0.00013972,2]
[329894331,1718801539694,-500.0,0.00013972,2]
[329894332,1718801539720,-500.0,0.00013972,2]
[329894333,1718801539747,-500.0,0.00013972,2]
[329894334,1718801539769,-619.33,0.00013972,2]
[329894335,1718801539792,-685.75,0.00013972,2]
[329894336,1718801539817,-500.0,0.00013972,2]
[329894337,1718801539843,-1080.69,0.00013972,2]
[329894338,1718801539868,-500.0,0.00013972,2]
[329894339,1718801539893,-1061.01,0.00013972,2]
[329894340,1718801539920,-522.12,0.00013972,2]
[329894341,1718801539944,-519.75,0.00013972,2]
[329894342,1718801539966,-570.22,0.00013972,2]
[329894343,1718801539989,-681.35,0.00013972,2]
[329894344,1718801540011,-500.0,0.00013972,2]
[329894345,1718801540034,-728.01,0.00013972,2]
[329894346,1718801540056,-500.0,0.00013972,2]
[329894347,1718801540078,-514.44,0.00013972,2]
[329894348,1718801540100,-500.0,0.00013972,2]
[329894349,1718801540121,-500.0,0.00013972,2]
[329894350,1718801540145,-500.0,0.00013972,2]
[329894351,1718801540168,-500.0,0.00013972,2]
[329894352,1718801540192,-1207.95,0.00013972,2]
[329894353,1718801540215,-2125.78,0.00013972,2]
[329894354,1718801540238,-500.0,0.00013972,2]
[329894355,1718801540261,-807.21,0.00013972,2]
[329894356,1718801540287,-500.0,0.00013972,2]
[329894357,1718801540311,-500.0,0.00013972,2]
[329894358,1718801540336,-1182.79,0.00013972,2]
[329894359,1718801540358,-500.0,0.00013972,2]
[329894360,1718801540384,-1013.21,0.00013972,2]
[329894361,1718801540406,-500.0,0.00013972,2]
[329894362,1718801540428,-500.0,0.00013972,2]
[329894363,1718801540453,-500.0,0.00013972,2]
[329894364,1718801540475,-1645.78,0.00013972,2]
[329894365,1718801540499,-500.0,0.00013972,2]
[329894366,1718801540521,-500.0,0.00013972,2]
[329894367,1718801540544,-500.0,0.00013972,2]
[329894368,1718801540565,-500.0,0.00013972,2]
[329894369,1718801540587,-788.56,0.00013972,2]
[329894370,1718801540608,-500.0,0.00013972,2]
[329894371,1718801540635,-526.68,0.00013972,2]
[329894372,1718801540657,-500.0,0.00013972,2]
[329894373,1718801540679,-1137.35,0.00013972,2]
[329894374,1718801540700,-500.0,0.00013972,2]
[329894375,1718801540723,-500.0,0.00013972,2]
[329894376,1718801540745,-500.0,0.00013972,2]
[329894377,1718801540767,-906.49,0.00013972,2]
[329894378,1718801540789,-962.09,0.00013972,2]
[329894379,1718801540810,-500.0,0.00013972,2]
[329894380,1718801540831,-697.08,0.00013972,2]
[329894381,1718801540853,-1725.64,0.00013972,2]
[329894382,1718801540876,-500.0,0.00013972,2]
[329894383,1718801540897,-1441.28,0.00013972,2]
[329894384,1718801540918,-500.0,0.00013972,2]
[329894385,1718801540940,-500.0,0.00013972,2]
[329894386,1718801540961,-500.0,0.00013972,2]
[329894387,1718801540983,-1851.08,0.00013972,2]
[329894388,1718801541004,-542.13261579,0.00013972,2]
[329894389,1718801541026,-1534.5,0.00013972,2]
[329894390,1718801541047,-1082.43,0.00013972,2]
[329894391,1718801541069,-866.61,0.00013972,2]
[329894392,1718801541090,-1057.95,0.00013972,2]
[329894393,1718801541111,-1331.42,0.00013972,2]
[329894394,1718801541133,-500.0,0.00013972,2]
[329894395,1718801541156,-1332.89,0.00013972,2]
[329894396,1718801541178,-783.48,0.00013972,2]
[329894397,1718801541200,-988.27,0.00013972,2]
[329894398,1718801541223,-500.0,0.00013972,2]
[329894399,1718801541245,-500.0,0.00013972,2]
[329894400,1718801541268,-500.0,0.00013972,2]
[329894401,1718801541290,-1082.6,0.00013972,2]
[329894402,1718801541316,-1383.99,0.00013972,2]
[329894403,1718801541339,-713.1,0.00013972,2]
[329894404,1718801541360,-500.0,0.00013972,2]
[329894405,1718801541384,-609.24,0.00013972,2]
[329894406,1718801541406,-500.0,0.00013972,2]
[329894407,1718801541426,-801.49,0.00013972,2]
[329894408,1718801541448,-500.0,0.00013972,2]
[329894409,1718801541472,-1449.05,0.00013972,2]
[329894410,1718801541493,-500.0,0.00013972,2]
[329894411,1718801541526,-518.41,0.00013972,2]
[329894412,1718801541551,-952.92,0.00013972,2]
[329894413,1718801541573,-500.0,0.00013972,2]
[329894414,1718801541596,-543.43,0.00013972,2]
[329894415,1718801541618,-627.89,0.00013972,2]
[329894416,1718801541639,-500.0,0.00013972,2]
[329894417,1718801541662,-1113.03,0.00013972,2]
[329894418,1718801541684,-1551.76,0.00013972,2]
[329894419,1718801541706,-1744.54,0.00013972,2]
[329894420,1718801541727,-776.13,0.00013972,2]
[329894421,1718801541750,-676.95,0.00013972,2]
[329894422,1718801541772,-553.71,0.00013972,2]
[329894423,1718801541793,-500.0,0.00013972,2]
[329894424,1718801541814,-969.44,0.00013972,2]
[329894425,1718801541836,-606.26,0.00013972,2]
[329894426,1718801541858,-542.47,0.00013972,2]
[329894428,1718801542004,-500.0,0.00013972,2]
[329894429,1718801542189,-754.48,0.00013972,2]
[329894430,1718801542212,-1528.71,0.00013972,2]
[329894431,1718801542235,-500.0,0.00013972,2]
[329894432,1718801542258,-500.0,0.00013972,2]
[329894433,1718801542282,-782.46,0.00013972,2]
[329894434,1718801542308,-1939.39,0.00013972,2]
[329894435,1718801542331,-500.0,0.00013972,2]
[329894436,1718801542352,-500.0,0.00013972,2]
[329894437,1718801542374,-1052.47,0.00013972,2]
[329894438,1718801542395,-500.0,0.00013972,2]
[329894439,1718801542418,-500.0,0.00013972,2]
[329894440,1718801542440,-1198.73,0.00013972,2]
[329894441,1718801542461,-500.0,0.00013972,2]
[329894442,1718801542483,-500.0,0.00013972,2]
[329894443,1718801542505,-564.41,0.00013972,2]
[329894444,1718801542526,-1461.5,0.00013972,2]
[329894445,1718801542547,-1695.1,0.00013972,2]
[329894446,1718801542568,-500.0,0.00013972,2]
[329894447,1718801542590,-1425.11,0.00013972,2]
[329894448,1718801542612,-500.0,0.00013972,2]
[329894449,1718801542637,-475.0,0.00013972,2]
[329894450,1718801542659,-151.0,0.00013972,2]
[329894451,1718801542681,-2267.97,0.00013972,2]
[329894452,1718801542703,-500.0,0.00013972,2]
[329894453,1718801542725,-927.79,0.00013972,2]
[329894454,1718801542746,-500.0,0.00013972,2]
[329894455,1718801542767,-702.83,0.00013972,2]
[329894456,1718801542789,-1978.75,0.00013972,2]
[329894457,1718801542811,-1030.81,0.00013972,2]
[329894458,1718801542832,-769.46,0.00013972,2]
[329894459,1718801542855,-916.96,0.00013972,2]
[329894460,1718801542876,-1728.4,0.00013972,2]
[329894461,1718801542897,-1568.92,0.00013972,2]
[329894462,1718801542919,-500.0,0.00013972,2]
[329894463,1718801542940,-500.0,0.00013972,2]
[329894464,1718801542961,-3148.43,0.00013972,2]
[329894465,1718801542983,-500.0,0.00013972,2]
[329894466,1718801543005,-500.0,0.00013972,2]
[329894467,1718801543029,-1005.32,0.00013972,2]
[329894468,1718801543053,-1044.4,0.00013972,2]
[329894469,1718801543076,-1533.35,0.00013972,2]
[329894470,1718801543099,-500.0,0.00013972,2]
[329894471,1718801543122,-1558.7,0.00013972,2]
[329894472,1718801543144,-611.19,0.00013972,2]
[329894473,1718801543166,-500.0,0.00013972,2]
[329894474,1718801543189,-500.0,0.00013972,2]
[329894475,1718801543210,-500.0,0.00013972,2]
[329894476,1718801543233,-1002.28,0.00013972,2]
[329894477,1718801543254,-500.0,0.00013972,2]
[329894478,1718801543276,-1608.23,0.00013972,2]
[329894479,1718801543305,-500.0,0.00013972,2]
[329894480,1718801543327,-500.0,0.00013972,2]
[329894481,1718801543350,-934.99,0.00013972,2]
[329894482,1718801543372,-1269.34,0.00013972,2]
[329894483,1718801543394,-500.0,0.00013972,2]
[329894484,1718801543417,-601.38323384,0.00013972,2]
[329894485,1718801543439,-500.0,0.00013972,2]
[329894486,1718801543460,-879.87,0.00013972,2]
[329894487,1718801543482,-1034.6,0.00013972,2]
[329894488,1718801543503,-691.24,0.00013972,2]
[329894489,1718801543524,-500.0,0.00013972,2]
[329894490,1718801543548,-500.0,0.00013972,2]
[329894491,1718801543570,-500.0,0.00013972,2]
[329894492,1718801543591,-1447.93,0.00013972,2]
[329894493,1718801543613,-690.11,0.00013972,2]
[329894494,1718801543636,-549.95,0.00013972,2]
[329894495,1718801543658,-713.62,0.00013972,2]
[329894496,1718801543682,-1034.95,0.00013972,2]
[329894497,1718801543704,-500.0,0.00013972,2]
[329894498,1718801543726,-500.0,0.00013972,2]
[329894499,1718801543749,-500.0,0.00013972,2]
[329894500,1718801543772,-603.94,0.00013972,2]
[329894501,1718801543795,-747.71,0.00013972,2]
[329894502,1718801543817,-500.0,0.00013972,2]
[329894503,1718801543839,-500.0,0.00013972,2]
[329894504,1718801543862,-500.0,0.00013972,2]
[329894505,1718801543886,-3005.03,0.00013972,2]
[329894506,1718801543908,-948.31,0.00013972,2]
[329894507,1718801543931,-898.65,0.00013972,2]
[329894508,1718801543956,-586.88,0.00013972,2]
[329894509,1718801543979,-1092.98,0.00013972,2]
[329894510,1718801544003,-1520.35,0.00013972,2]
[329894511,1718801544024,-807.6,0.00013972,2]
[329894512,1718801544044,-500.0,0.00013972,2]
[329894513,1718801544065,-1517.13,0.00013972,2]
[329894514,1718801544087,-500.0,0.00013972,2]
[329894515,1718801544108,-500.0,0.00013972,2]
[329894516,1718801544129,-312.4338006,0.00013972,2]
[329894517,1718801544150,-500.0,0.00013972,2]
[329894518,1718801544173,-500.0,0.00013972,2]
[329894519,1718801544195,-500.0,0.00013972,2]
[329894520,1718801544218,-568.56,0.00013972,2]
[329894521,1718801544241,-500.0,0.00013972,2]
[329894522,1718801544263,-1396.5,0.00013972,2]
[329894523,1718801544286,-228.011237,0.00013972,2]
[329894524,1718801544312,-500.0,0.00013972,2]
[329894525,1718801544335,-537.52,0.00013972,2]
[329894526,1718801544358,-948.33,0.00013972,2]
[329894527,1718801544382,-500.0,0.00013972,2]
[329894528,1718801544406,-566.79,0.00013972,2]
[329894529,1718801544429,-1491.98,0.00013972,2]
[329894530,1718801544452,-1391.35,0.00013972,2]
[329894531,1718801544476,-500.0,0.00013972,2]
[329894532,1718801544497,-1248.91,0.00013972,2]
[329894533,1718801544519,-1425.5,0.00013972,2]
[329894534,1718801544541,-500.0,0.00013972,2]
[329894535,1718801544564,-1950.76,0.00013972,2]
[329894536,1718801544586,-215.12439765,0.00013972,2]
[329894537,1718801544607,-500.0,0.00013972,2]
[329894538,1718801544630,-500.0,0.00013972,2]
[329894539,1718801544652,-1606.18,0.00013972,2]
[329894540,1718801544676,-512.66,0.00013972,2]
[329894541,1718801544698,-500.0,0.00013972,2]
[329894542,1718801544720,-500.0,0.00013972,2]
[329894543,1718801544742,-500.0,0.00013972,2]
[329894544,1718801544765,-1270.1,0.00013972,2]
[329894545,1718801544787,-2038.31,0.00013972,2]
[329894546,1718801544809,-572.49,0.00013972,2]
[329894547,1718801544836,-1479.32,0.00013972,2]
[329894548,1718801544859,-500.0,0.00013972,2]
[329894549,1718801544883,-1625.15,0.00013972,2]
[329894550,1718801544905,-1000.0,0.00013972,5]
[329894551,1718801544927,-500.0,0.00013972,2]
[329894552,1718801544950,-500.0,0.00013972,2]
[329894553,1718801544972,-1662.94,0.00013972,2]
[329894554,1718801544996,-1845.43,0.00013972,2]
[329894555,1718801545018,-692.36,0.00013972,2]
[329894556,1718801545039,-500.0,0.00013972,2]
[329894557,1718801545062,-659.47,0.00013972,2]
[329894558,1718801545084,-500.0,0.00013972,2]
[329894559,1718801545106,-832.28,0.00013972,2]
[329894560,1718801545129,-500.0,0.00013972,2]
[329894561,1718801545152,-500.0,0.00013972,2]
[329894562,1718801545174,-500.0,0.00013972,2]
[329894563,1718801545195,-500.0,0.00013972,2]
[329894564,1718801545217,-1046.48,0.00013972,2]
[329894565,1718801545239,-1179.74,0.00013972,2]
[329894566,1718801545261,-500.0,0.00013972,2]
[329894567,1718801545287,-500.0,0.00013972,2]
[329894568,1718801545309,-764.09,0.00013972,2]
[329894569,1718801545333,-1962.8,0.00013972,2]
[329894570,1718801545354,-593.03659458,0.00013972,2]
[329894571,1718801545376,-1265.34,0.00013972,2]
[329894572,1718801545399,-644.22593195,0.00013972,2]
[329894573,1718801545421,-500.0,0.00013972,2]
[329894574,1718801545442,-500.0,0.00013972,2]
[329894575,1718801545465,-500.0,0.00013972,2]
[329894576,1718801545488,-500.0,0.00013972,2]
[329894577,1718801545511,-635.2,0.00013972,2]
[329894578,1718801545535,-1812.51,0.00013972,2]
[329894579,1718801545559,-1139.79,0.00013972,2]
[329894580,1718801545583,-832.53,0.00013972,2]
[329894581,1718801545606,-500.0,0.00013972,2]
[329894582,1718801545629,-500.0,0.00013972,2]
[329894583,1718801545653,-626.77,0.00013972,2]
[329894584,1718801545677,-1157.86,0.00013972,2]
[329894585,1718801545701,-3913.67,0.00013972,2]
[329894586,1718801545725,-1276.21,0.00013972,2]
[329894587,1718801545750,-1040.82,0.00013972,2]
[329894588,1718801545783,-783.23,0.00013972,2]
[329894589,1718801545811,-159.1577287,0.00013972,2]
[329894590,1718801545835,-500.0,0.00013972,2]
[329894591,1718801545861,-1435.36,0.00013972,2]
[329894592,1718801545884,-6169.13,0.00013972,2]
[329894593,1718801545921,-1538.19,0.00013972,2]
[329894594,1718801545947,-500.0,0.00013972,2]
[329894595,1718801545971,-500.0,0.00013972,2]
[329894596,1718801545995,-500.0,0.00013972,2]
[329894597,1718801546021,-557.61,0.00013972,2]
[329894598,1718801546050,-1938.9,0.00013972,2]
[329894599,1718801546096,-682.85,0.00013972,2]
[329894600,1718801546144,-500.0,0.00013972,2]
[329894601,1718801546192,-500.0,0.00013972,2]
[329894602,1718801546242,-1264.22,0.00013972,2]
[329894603,1718801546299,-4418.37,0.00013972,2]
[329894604,1718801546324,-1143.84,0.00013972,2]
[329894605,1718801546351,-500.0,0.00013972,2]
[329894606,1718801546377,-1948.23,0.00013972,2]
[329894607,1718801546402,-25364.78,0.00013972,2]
[329894608,1718801546729,-797.74,0.00013972,2]
[329894609,1718801546810,-539.32,0.00013972,2]
[329894610,1718801546836,-2691.51,0.00013972,2]
[329894611,1718801546858,-500.0,0.00013972,2]
[329894612,1718801546886,-500.0,0.00013972,2]
[329894613,1718801546909,-1080.78,0.00013972,2]
[329894614,1718801546932,-946.92,0.00013972,2]
[329894615,1718801546955,-2306.39,0.00013972,2]
[329894616,1718801546978,-500.0,0.00013972,2]
[329894617,1718801547000,-2827.68,0.00013972,2]
[329894618,1718801547022,-500.0,0.00013972,2]
[329894619,1718801547045,-2320.39,0.00013972,2]
[329894620,1718801547068,-983.35,0.00013972,2]
[329894621,1718801547090,-845.79,0.00013972,2]
[329894622,1718801547112,-3159.33,0.00013972,2]
[329894623,1718801547135,-531.05372653,0.00013972,2]
[329894624,1718801547158,-500.0,0.00013972,2]
[329894625,1718801547180,-1368.34,0.00013972,2]
[329894626,1718801547204,-500.0,0.00013972,2]
[329894627,1718801547228,-1601.9,0.00013972,2]
[329894628,1718801547254,-1770.95,0.00013972,2]
[329894629,1718801547275,-3796.92,0.00013972,2]
[329894630,1718801547308,-252.22035688,0.00013972,2]
[329894631,1718801547335,-1737.61,0.00013972,2]
[329894632,1718801547364,-2131.7,0.00013972,2]
[329894633,1718801547386,-1791.97,0.00013972,2]
[329894634,1718801547409,-500.0,0.00013972,2]
[329894635,1718801547431,-822.66,0.00013972,2]
[329894636,1718801547452,-500.0,0.00013972,2]
[329894637,1718801547475,-7716.52,0.00013972,2]
[329894638,1718801547498,-1180.62,0.00013972,2]
[329894639,1718801547520,-723.73,0.00013972,2]
[329894640,1718801547543,-525.66,0.00013972,2]
[329894641,1718801547566,-2112.34,0.00013972,2]
[329894642,1718801547588,-1034.35,0.00013972,2]
[329894643,1718801547610,-589.09,0.00013972,2]
[329894644,1718801547633,-2893.39,0.00013972,2]
[329894645,1718801547659,-7338.74,0.00013972,2]
[329894646,1718801547680,-500.0,0.00013972,2]
[329894647,1718801547702,-933.46,0.00013972,2]
[329894648,1718801547724,-206.96456969,0.00013972,2]
[329894649,1718801547746,-500.0,0.00013972,2]
[329894650,1718801547768,-1915.56,0.00013972,2]
[329894651,1718801547796,-4319.08,0.00013972,2]
[329894652,1718801547822,-500.0,0.00013972,2]
[329894653,1718801547845,-17188.49,0.00013972,2]
[329894654,1718801547867,-500.0,0.00013972,2]
[329894655,1718801547888,-500.0,0.00013972,2]
[329894656,1718801547912,-500.0,0.00013972,2]
[329894657,1718801547936,-1203.33,0.00013972,2]
[329894658,1718801547958,-1899.24,0.00013972,2]
[329894659,1718801547982,-6518.21,0.00013972,2]
[329894660,1718801548005,-3494.89,0.00013972,2]
[329894661,1718801548028,-500.0,0.00013972,2]
[329894662,1718801548059,-4917.92,0.00013972,2]
[329894663,1718801548081,-1763.96,0.00013972,2]
[329894664,1718801548102,-500.0,0.00013972,2]
[329894665,1718801548124,-500.0,0.00013972,2]
[329894666,1718801548147,-500.0,0.00013972,2]
[329894667,1718801548169,-564.63,0.00013972,2]
[329894668,1718801548191,-2727.5,0.00013972,2]
[329894669,1718801548212,-24908.09,0.00013972,2]
[329894670,1718801548235,-1106.69,0.00013972,2]
[329894671,1718801548258,-1552.48,0.00013972,2]
[329894672,1718801548282,-7882.52,0.00013972,2]
[329894673,1718801548310,-599.88,0.00013972,2]
[329894674,1718801548334,-1418.27,0.00013972,2]
[329894675,1718801548356,-564.04,0.00013972,2]
[329894676,1718801548381,-2368.9,0.00013972,2]
[329894677,1718801548403,-1945.75,0.00013972,2]
[329894678,1718801548426,-500.0,0.00013972,2]
[329894679,1718801548460,-5036.79,0.00013972,2]
[329894680,1718801548488,-1607.42,0.00013972,2]
[329894681,1718801548513,-540.13,0.00013972,2]
[329894682,1718801548537,-1094.36,0.00013972,2]
[329894683,1718801548563,-602.58,0.00013972,2]
[329894684,1718801548588,-500.0,0.00013972,2]
[329894685,1718801548612,-2616.14,0.00013972,2]
[329894686,1718801548636,-1500.52,0.00013972,2]
[329894687,1718801548661,-528.74,0.00013972,2]
[329894688,1718801548687,-7122.87,0.00013972,2]
[329894689,1718801548711,-500.0,0.00013972,2]
[329894690,1718801548735,-1250.8,0.00013972,2]
[329894691,1718801548759,-500.0,0.00013972,2]
[329894692,1718801548782,-500.0,0.00013972,2]
[329894693,1718801548808,-11585.17,0.00013972,2]
[329894694,1718801548833,-4929.33,0.00013972,2]
[329894695,1718801548859,-500.0,0.00013972,2]
[329894696,1718801548883,-2420.17,0.00013972,2]
[329894697,1718801548906,-1898.2,0.00013972,2]
[329894698,1718801548930,-500.0,0.00013972,2]
[329894699,1718801548952,-1245.6,0.00013972,2]
[329894700,1718801548976,-2339.38,0.00013972,2]
[329894701,1718801549004,-7352.71,0.00013972,2]
[329894702,1718801549027,-1426.17,0.00013972,2]
[329894703,1718801549051,-500.0,0.00013972,2]
[329894704,1718801549074,-1294.33,0.00013972,2]
[329894705,1718801549097,-4823.28,0.00013972,2]
[329894706,1718801549121,-7784.72,0.00013972,2]
[329894707,1718801549146,-740.04,0.00013972,2]
[329894708,1718801549170,-500.0,0.00013972,2]
[329894709,1718801549193,-1025.31,0.00013972,2]
[329894710,1718801549216,-3338.35,0.00013972,2]
[329894711,1718801549239,-768.01,0.00013972,2]
[329894712,1718801549262,-4682.4,0.00013972,2]
[329894713,1718801549287,-1336.87,0.00013972,2]
[329894714,1718801549314,-10213.26,0.00013972,2]
[329894715,1718801549338,-2062.11,0.00013972,2]
[329894716,1718801549362,-151.0,0.00013972,2]
[329894717,1718801549388,-17977.51,0.00013972,2]
[329894718,1718801549412,-644.41,0.00013972,2]
[329894719,1718801549435,-3378.6,0.00013972,2]
[329894720,1718801549458,-11821.09,0.00013972,2]
[329894721,1718801549481,-816.61,0.00013972,2]
[329894722,1718801549503,-1996.29,0.00013972,2]
[329894723,1718801549527,-1237.18,0.00013972,2]
[329894724,1718801549552,-3386.94,0.00013972,2]
[329894725,1718801549574,-525.24,0.00013972,2]
[329894726,1718801549598,-1469.64,0.00013972,2]
[329894727,1718801549621,-500.0,0.00013972,2]
[329894728,1718801549643,-500.0,0.00013972,2]
[329894729,1718801549667,-1216.05,0.00013972,2]
[329894730,1718801549689,-500.0,0.00013972,2]
[329894731,1718801549716,-2873.45,0.00013972,2]
[329894732,1718801549739,-7061.32,0.00013972,2]
[329894733,1718801549763,-4531.13,0.00013972,2]
[329894734,1718801549787,-4100.16,0.00013972,2]
[329894735,1718801549811,-1658.63,0.00013972,2]
[329894736,1718801549835,-829.12,0.00013972,2]
[329894737,1718801549858,-3815.32,0.00013972,2]
[329894738,1718801549890,-500.0,0.00013972,2]
[329894739,1718801549914,-594.33,0.00013972,2]
[329894740,1718801549938,-1783.93,0.00013972,2]
[329894741,1718801549962,-1850.12,0.00013972,2]
[329894742,1718801549985,-678.08,0.00013972,2]
[329894743,1718801550008,-5000.0,0.00013972,2]
[329894744,1718801550031,-3508.55,0.00013972,2]
[329894745,1718801550056,-500.0,0.00013972,2]
[329894746,1718801550079,-1205.29,0.00013972,2]
[329894747,1718801550104,-550.62,0.00013972,2]
[329894748,1718801550127,-1489.35,0.00013972,2]
[329894749,1718801550150,-1456.02,0.00013972,2]
[329894750,1718801550173,-2214.2,0.00013972,2]
[329894751,1718801550196,-500.0,0.00013972,2]
[329894752,1718801550219,-512.58,0.00013972,2]
[329894753,1718801550243,-511.96,0.00013972,2]
[329894754,1718801550267,-1223.67,0.00013972,2]
[329894755,1718801550293,-2766.42,0.00013972,2]
[329894756,1718801550317,-5246.16,0.00013972,2]
[329894757,1718801550342,-952.4,0.00013972,2]
[329894758,1718801550367,-2797.6,0.00013972,2]
[329894759,1718801550391,-1390.77,0.00013972,2]
[329894760,1718801550414,-2009.47,0.00013972,2]
[329894761,1718801550439,-500.0,0.00013972,2]
[329894762,1718801550462,-3156.54,0.00013972,2]
[329894763,1718801550484,-631.18936695,0.00013972,2]
[329894764,1718801550506,-3575.93,0.00013972,2]
[329894766,1718801550528,-500.0,0.00013972,2]
[329894767,1718801550551,-1765.15,0.00013972,2]
[329894768,1718801550572,-3008.88,0.00013972,2]
[329894769,1718801550594,-1088.85,0.00013972,2]
[329894770,1718801550616,-500.0,0.00013972,2]
[329894771,1718801550638,-2075.95,0.00013972,2]
[329894772,1718801550660,-500.0,0.00013972,2]
[329894773,1718801550682,-1817.05,0.00013972,2]
[329894774,1718801550704,-3093.82,0.00013972,2]
[329894775,1718801550726,-1176.47,0.00013972,2]
[329894776,1718801550747,-5527.19,0.00013972,2]
[329894777,1718801550769,-639.31,0.00013972,2]
[329894778,1718801550793,-500.0,0.00013972,2]
[329894779,1718801550816,-5926.93,0.00013972,2]
[329894780,1718801550838,-500.0,0.00013972,2]
[329894781,1718801550860,-2302.29,0.00013972,2]
[329894782,1718801550882,-1027.69,0.00013972,2]
[329894783,1718801550904,-155.605512,0.00013972,2]
[329894784,1718801550927,-3112.54,0.00013972,2]
[329894785,1718801551274,-1225.28,0.00013972,2]
[329894786,1718801551301,-500.0,0.00013972,2]
[329894787,1718801551325,-5622.38,0.00013972,2]
[329894788,1718801551349,-500.0,0.00013972,2]
[329894789,1718801551371,-500.0,0.00013972,2]
[329894790,1718801551395,-3415.04,0.00013972,2]